bitfinex-derivatives/quotes_SOLF0:USTF0_20241227
["timestamp","ask_amount","ask_price","bid_price","bid_amount"]
[1735316295251,59.8976953,184.13,184.0,5.4792]
[1735316295449,59.8976953,184.13,184.02,2.721]
[1735316295450,2.7203,184.07,184.02,2.721]
[1735316295645,20.50668813,184.11,183.92,56.56]
[1735316295847,2.7221,183.95,183.92,56.56]
[1735316296048,20.50668813,184.0,183.93,3.82]
[1735316296353,20.50668813,183.97,183.93,3.82]
[1735316296553,20.50668813,183.97,183.94,3.82]
[1735316296751,20.50668813,183.97,183.88,1.6592]
[1735316296954,2.7234,183.86,183.83,29.94884764]
[1735316297151,20.50668813,183.91,183.83,29.94884764]
[1735316297152,20.50668813,183.91,183.83,31.60564764]
[1735316297358,20.50668813,183.88,183.84,3.82]
[1735316298450,20.50668813,183.88,183.85,3.82]
[1735316299453,2.7235,183.86,183.85,3.82]
[1735316299953,2.7227,183.91,183.85,3.82]
[1735316300154,3.3074,183.93,183.85,3.82]
[1735316300958,20.50668813,183.94,183.85,3.82]
[1735316301150,20.50668813,183.97,183.85,3.82]
[1735316301352,20.50668813,183.94,183.85,3.82]
[1735316302458,2.7228,183.9,183.85,3.82]
[1735316303163,2.7224,183.93,183.87,2.7232]
[1735316303463,20.50668813,183.94,183.85,3.82]
[1735316303763,2.7234,183.86,183.85,3.82]
[1735316304066,20.50668813,183.91,183.85,3.82]
[1735316304565,2.7233,183.87,183.85,3.82]
[1735316305868,2.7237,183.84,183.8,1.6568]
[1735316306059,2.7237,183.84,183.81,3.82]
[1735316306458,2.7234,183.86,183.81,3.82]
[1735316306661,20.50668813,183.93,183.81,3.82]
[1735316307476,2.7237,183.85,183.82,3.82]
[1735316307773,20.50668813,183.93,183.82,3.82]
[1735316308172,2.7236,183.85,183.82,3.82]
[1735316309272,20.50668813,183.93,183.82,3.82]
[1735316309273,2.7233,183.87,183.82,3.82]
[1735316310073,20.50668813,183.93,183.82,3.82]
[1735316310569,2.7238,183.83,183.8,1.6568]
[1735316310770,20.50668813,183.9,183.81,3.82]
[1735316310967,1.5723,183.92,183.8,1.6568]
[1735316310968,20.50668813,183.87,183.8,3.82]
[1735316311367,2.7245,183.78,183.73,2.7253]
[1735316311572,2.7245,183.78,183.77,60.38]
[1735316311966,20.50668813,183.87,183.77,60.38]
[1735316312167,2.7244,183.79,183.77,60.38]
[1735316312365,20.50668813,183.87,183.77,60.38]
[1735316313167,1.5625,183.89,183.77,63.1047]
[1735316313478,2.7238,183.83,183.77,60.38]
[1735316313976,2.7238,183.83,183.77,63.1047]
[1735316314173,2.724,183.82,183.77,63.1047]
[1735316314373,1.5625,183.89,183.77,60.38]
[1735316314974,2.724,183.82,183.77,60.38]
[1735316316070,1.5625,183.89,183.77,56.56]
[1735316316274,1.5625,183.89,183.78,3.82]
[1735316317477,2.7244,183.8,183.78,3.82]
[1735316317873,1.5625,183.89,183.78,3.82]
[1735316318072,2.7244,183.79,183.78,3.82]
[1735316319371,2.7245,183.78,183.73,1.5661]
[1735316319678,20.50668813,183.84,183.74,3.82]
[1735316320067,20.50668813,183.87,183.74,3.82]
[1735316320068,20.50668813,183.81,183.74,3.82]
[1735316320280,20.50668813,183.78,183.66,4.7707]
[1735316320485,2.7261,183.68,183.67,3.82]
[1735316321675,2.7261,183.68,183.66,4.7707]
[1735316321977,2.7261,183.68,183.67,3.82]
[1735316322375,2.7259,183.69,183.67,3.82]
[1735316323283,20.50668813,183.78,183.67,3.82]
[1735316323284,2.7255,183.72,183.67,3.82]
[1735316323575,3.218,183.8,183.67,3.82]
[1735316323786,1.6533,183.8,183.67,3.82]
[1735316323975,1.6954,183.83,183.67,3.82]
[1735316324876,1.6697,183.85,183.69,20.50668813]
[1735316325079,29.94884764,183.89,183.72,20.50668813]
[1735316325278,29.94884764,183.89,183.73,3.82]
[1735316325484,2.7241,183.81,183.76,2.7248]
[1735316325780,20.50668813,183.86,183.77,3.82]
[1735316325972,2.7245,183.78,183.77,3.82]
[1735316330672,3.276,183.82,183.7,4.3321]
[1735316330878,2.725,183.75,183.71,3.82]
[1735316331080,3.276,183.82,183.71,3.82]
[1735316331277,2.7253,183.73,183.72,3.82]
[1735316332886,2.726,183.68,183.67,1.5963]
[1735316333088,20.50668813,183.77,183.67,3.82]
[1735316333479,2.726,183.68,183.67,3.82]
[1735316336179,20.50668813,183.77,183.67,3.82]
[1735316336380,20.50668813,183.8,183.67,3.82]
[1735316336684,20.50668813,183.8,183.67,5.4232]
[1735316336881,20.50668813,183.8,183.68,2.7259]
[1735316337084,20.50668813,183.8,183.67,5.4232]
[1735316337384,2.7258,183.7,183.68,3.82]
[1735316337585,20.50668813,183.8,183.68,3.82]
[1735316337982,2.7259,183.69,183.68,3.82]
[1735316338590,2.7259,183.69,183.67,1.6032]
[1735316338888,2.7259,183.69,183.68,3.82]
[1735316340688,2.7262,183.67,183.66,1.5862]
[1735316340889,20.50668813,183.77,183.66,3.82]
[1735316342086,2.7262,183.67,183.66,3.82]
[1735316342293,5.70571472,183.81,183.66,3.82]
[1735316342294,20.50668813,183.74,183.66,3.82]
[1735316342587,1.5752,183.73,183.66,3.82]
[1735316343189,20.50668813,183.78,183.66,3.82]
[1735316343893,1.5752,183.8,183.67,1.7093]
[1735316344793,2.725,183.76,183.7,2.7257]
[1735316344989,2.725,183.76,183.67,1.7093]
[1735316345194,2.725,183.76,183.69,20.50668813]
[1735316345387,2.725,183.76,183.7,3.2654]
[1735316346089,2.725,183.75,183.71,2.7255]
[1735316346294,2.725,183.75,183.72,3.82]
[1735316348395,3.12539,183.79,183.72,3.82]
[1735316349285,3.12539,183.79,183.72,24.32668813]
[1735316349499,3.12539,183.79,183.76,2.7247]
[1735316349797,3.12539,183.79,183.77,1.6777]
[1735316349997,3.12539,183.79,183.78,3.82]
[1735316349998,5.84979,183.79,183.78,3.82]
[1735316350794,3.12539,183.79,183.78,3.82]
[1735316351297,7.48721191,183.91,183.78,3.82]
[1735316351590,7.48721191,183.91,183.78,5.5078]
[1735316351794,2.7243,183.8,183.78,5.5078]
[1735316352197,20.50668813,183.9,183.78,5.5078]
[1735316352392,34.84794764,183.92,183.81,20.50668813]
[1735316352590,1.6237,183.92,183.81,20.50668813]
[1735316352901,89.84654295,183.96,183.84,20.50668813]
[1735316353097,89.84654295,183.96,183.85,3.82]
[1735316353297,20.50668813,183.94,183.85,3.82]
[1735316353595,2.7232,183.88,183.85,3.82]
[1735316353796,271.38746043,183.97,183.85,3.82]
[1735316354000,2.7234,183.86,183.85,3.82]
[1735316356492,2.7232,183.88,183.85,3.82]
[1735316356900,7.55210383,183.94,183.85,3.82]
[1735316357101,2.7234,183.86,183.85,3.82]
[1735316358304,2.7232,183.87,183.85,3.82]
[1735316358605,20.50668813,183.96,183.85,3.82]
[1735316359501,2.7232,183.88,183.85,3.82]
[1735316359705,20.50668813,183.96,183.85,3.82]
[1735316360095,2.7236,183.85,183.81,56.62]
[1735316360302,2.7236,183.85,183.82,3.82]
[1735316360605,2.7237,183.84,183.83,3.82]
[1735316361397,24.59215717,183.96,183.83,3.82]
[1735316361603,54.8005725,183.96,183.83,3.82]
[1735316361804,50.71510346,183.96,183.83,3.82]
[1735316362405,30.20841533,183.96,183.83,3.82]
[1735316362605,2.7225,183.93,183.84,2.7235]
[1735316362907,100.64765946,183.97,183.83,3.82]
[1735316363307,2.7227,183.91,183.85,2.7235]
[1735316363608,100.64765946,183.97,183.85,2.7235]
[1735316364011,2.7228,183.9,183.84,2.7236]
[1735316364304,20.50668813,183.96,183.85,3.82]
[1735316364510,20.50668813,183.96,183.86,3.82]
[1735316364711,20.50668813,183.93,183.87,3.82]
[1735316364908,20.50668813,183.96,183.87,3.82]
[1735316365206,100.64765946,183.97,183.87,3.82]
[1735316365406,22.05848813,183.99,183.87,3.82]
[1735316365407,7.55210383,183.98,183.87,3.82]
[1735316365599,2.7225,183.92,183.87,6.5432]
[1735316365802,2.7225,183.92,183.87,3.82]
[1735316367009,2.7227,183.91,183.87,3.82]
[1735316367402,1.5518,183.99,183.87,3.82]
[1735316367603,1.5518,183.99,183.87,6.5432]
[1735316368203,2.7226,183.92,183.87,6.5432]
[1735316368608,1.5518,183.99,183.88,1.5789]
[1735316368807,1.5518,183.99,183.88,4.7344]
[1735316370313,1.5518,183.99,183.89,3.82]
[1735316370314,2.7219,183.96,183.89,3.82]
[1735316370514,2.7219,183.96,183.82,4.8232]
[1735316370515,20.50668813,183.96,183.82,4.8232]
[1735316370712,1.5518,183.99,183.82,4.8232]
[1735316370713,20.50668813,183.93,183.83,3.82]
[1735316370912,1.5544,183.92,183.84,3.82]
[1735316371312,1.6493,183.91,183.84,3.82]
[1735316371817,20.50668813,183.9,183.85,3.82]
[1735316372214,20.50668813,183.9,183.81,56.62]
[1735316372411,20.50668813,183.9,183.82,3.82]
[1735316373112,2.7239,183.82,183.81,56.62]
[1735316373518,2.7239,183.82,183.81,60.44]
[1735316377215,1.6493,183.91,183.81,60.44]
[1735316377616,2.7239,183.83,183.81,60.44]
[1735316377811,1.6493,183.91,183.81,60.44]
[1735316380119,2.7239,183.82,183.81,60.44]
[1735316380718,2.7247,183.77,183.73,4.9051]
[1735316381319,20.50668813,183.84,183.74,3.82]
[1735316381521,3.2151,183.83,183.74,3.82]
[1735316383220,2.725,183.76,183.74,3.82]
[1735316383422,3.2151,183.83,183.74,3.82]
[1735316383825,2.7242,183.81,183.74,3.82]
[1735316384124,3.2151,183.83,183.73,1.5789]
[1735316384324,3.2151,183.83,183.74,3.82]
[1735316386227,2.725,183.76,183.74,3.82]
[1735316387225,2.725,183.75,183.74,3.82]
[1735316387623,3.2151,183.83,183.74,3.82]
[1735316388021,1.6223,183.86,183.74,3.82]
[1735316388222,2.7243,183.8,183.75,2.725]
[1735316388928,2.7244,183.79,183.74,6.5451]
[1735316389316,1.6223,183.86,183.74,3.82]
[1735316389523,2.7249,183.76,183.74,3.82]
[1735316390327,1.6223,183.86,183.74,6.5451]
[1735316390523,1.6223,183.86,183.74,3.82]
[1735316390723,1.6223,183.86,183.72,20.50668813]
[1735316390922,1.6223,183.86,183.73,3.8]
[1735316391229,2.7247,183.78,183.73,6.5252]
[1735316391627,1.6223,183.86,183.74,3.8]
[1735316392326,1.6223,183.86,183.75,3.8]
[1735316393029,2.725,183.75,183.71,1.5884]
[1735316393229,20.50668813,183.84,183.72,3.8]
[1735316393430,20.50668813,183.84,183.71,1.5884]
[1735316393635,20.50668813,183.81,183.7,56.6]
[1735316394028,3.2234,183.8,183.71,3.8]
[1735316394328,2.7254,183.72,183.71,3.8]
[1735316395126,20.50668813,183.75,183.69,3.8]
[1735316395628,2.7257,183.7,183.69,3.8]
[1735316396532,20.50668813,183.75,183.62,4.9019]
[1735316396732,20.50668813,183.75,183.63,3.8]
[1735316397729,20.50668813,183.75,183.62,4.9019]
[1735316397933,20.50668813,183.75,183.64,3.8]
[1735316398229,2.7255,183.72,183.64,3.8]
[1735316398429,1.6088,183.77,183.64,3.8]
[1735316398826,2.726,183.69,183.64,3.8]
[1735316399030,1.6088,183.77,183.64,3.8]
[1735316400430,20.50668813,183.75,183.65,3.8]
[1735316400626,2.7263,183.66,183.65,3.8]
[1735316400834,1.6088,183.77,183.65,3.8]
[1735316401035,20.50668813,183.75,183.65,3.8]
[1735316401336,2.7263,183.66,183.65,3.8]
[1735316402234,2.7263,183.66,183.59,4.267]
[1735316402235,20.50668813,183.72,183.59,1.5398]
[1735316402532,1.6277,183.71,183.6,3.8]
[1735316402734,1.6277,183.71,183.6,8.2255]
[1735316402735,2.7265,183.65,183.6,8.2255]
[1735316403438,3.2901,183.71,183.6,5.4983]
[1735316404337,3.2901,183.71,183.6,1.6983]
[1735316404739,2.7273,183.6,183.57,56.62]
[1735316405237,2.7273,183.6,183.58,3.8]
[1735316405834,2.7274,183.59,183.58,3.8]
[1735316406039,20.50668813,183.69,183.57,56.62]
[1735316406341,20.50668813,183.69,183.58,3.8]
[1735316406837,1.6545,183.7,183.58,3.8]
[1735316407340,20.50668813,183.69,183.58,3.8]
[1735316407641,2.7274,183.59,183.58,3.8]
[1735316407934,20.50668813,183.69,183.58,3.8]
[1735316408136,2.7263,183.67,183.58,6.5275]
[1735316408337,1.6545,183.7,183.58,6.5275]
[1735316408934,2.7268,183.63,183.58,3.8]
[1735316409137,1.6545,183.7,183.58,3.8]
[1735316409943,20.50668813,183.69,183.58,3.8]
[1735316410145,2.7274,183.59,183.58,3.8]
[1735316410641,2.7275,183.58,183.57,56.62]
[1735316410845,12.83338636,183.69,183.57,56.62]
[1735316410846,12.83338636,183.64,183.57,3.82]
[1735316411149,2.7275,183.58,183.57,3.82]
[1735316411443,12.83338636,183.67,183.57,3.82]
[1735316411847,16.15308636,183.7,183.57,16.65338636]
[1735316412242,2.7268,183.63,183.58,2.7275]
[1735316412650,16.15308636,183.7,183.57,16.65338636]
[1735316412940,2.7272,183.61,183.57,16.65338636]
[1735316413443,12.83338636,183.67,183.55,4.9793]
[1735316413652,12.83338636,183.64,183.56,3.82]
[1735316413948,12.83338636,183.61,183.55,3.82]
[1735316414149,2.7278,183.56,183.55,3.82]
[1735316416349,2.7284,183.52,183.47,20.54574529]
[1735316416647,2.7284,183.52,183.48,3.82]
[1735316416945,2.7286,183.51,183.48,3.82]
[1735316417144,20.54574529,183.61,183.49,3.82]
[1735316417643,2.7287,183.5,183.49,3.82]
[1735316417851,20.54574529,183.58,183.49,3.82]
[1735316418851,2.7287,183.5,183.49,3.82]
[1735316419051,20.54574529,183.61,183.49,3.82]
[1735316419750,2.7283,183.53,183.49,3.82]
[1735316420547,2.7285,183.52,183.49,3.82]
[1735316421848,20.54574529,183.61,183.49,3.82]
[1735316422050,2.7282,183.54,183.49,3.82]
[1735316422753,1.5711,183.62,183.49,3.82]
[1735316423149,20.54574529,183.7,183.53,20.54574529]
[1735316423456,23.79214529,183.7,183.57,2.7276]
[1735316423650,23.79214529,183.7,183.58,3.8]
[1735316424153,3.2464,183.7,183.58,3.8]
[1735316424556,2.7272,183.6,183.58,3.8]
[1735316424852,23.79214529,183.7,183.58,3.8]
[1735316425053,2.7271,183.61,183.58,3.8]
[1735316425354,3.2464,183.7,183.58,3.8]
[1735316425557,2.7265,183.65,183.59,2.7272]
[1735316426055,2.7268,183.63,183.58,3.8]
[1735316426251,3.2464,183.7,183.58,3.8]
[1735316426252,23.79214529,183.7,183.58,3.8]
[1735316426454,23.79214529,183.7,183.54,4.8316]
[1735316426651,2.7278,183.56,183.55,3.8]
[1735316427449,2.7278,183.56,183.54,4.8316]
[1735316427648,2.7278,183.56,183.55,3.8]
[1735316431759,3.3221,183.63,183.47,3.2257]
[1735316431959,1.6418,183.62,183.49,3.8]
[1735316433157,2.7277,183.57,183.52,2.7283]
[1735316433352,1.6418,183.62,183.51,20.54574529]
[1735316433754,2.7276,183.58,183.53,2.7282]
[1735316433954,1.6418,183.62,183.51,20.54574529]
[1735316434155,1.6418,183.62,183.48,20.54574529]
[1735316434356,2.7283,183.53,183.52,3.8]
[1735316435357,2.7281,183.55,183.52,3.8]
[1735316436654,1.6418,183.62,183.52,3.8]
[1735316438562,2.7274,183.59,183.52,3.8]
[1735316438752,1.6418,183.62,183.52,6.5283]
[1735316439865,1.6418,183.62,183.53,3.8]
[1735316440461,2.7277,183.57,183.53,3.8]
[1735316440656,1.6418,183.62,183.53,3.8]
[1735316441160,2.7281,183.55,183.53,3.8]
[1735316443367,1.6418,183.62,183.53,3.8]
[1735316443571,2.7281,183.55,183.53,3.8]
[1735316444168,2.7281,183.54,183.53,3.8]
[1735316446068,1.6418,183.62,183.53,3.8]
[1735316447373,2.7275,183.59,183.53,16.63968526]
[1735316447570,1.6949,183.63,183.53,16.63968526]
[1735316447871,12.83968526,183.62,183.54,3.8]
[1735316448474,2.728,183.55,183.54,3.8]
[1735316448777,12.83968526,183.62,183.54,3.8]
[1735316448979,2.7273,183.6,183.54,3.8]
[1735316449179,12.83968526,183.62,183.54,3.8]
[1735316449682,2.7277,183.57,183.54,3.8]
[1735316450581,2.7274,183.59,183.54,16.63968526]
[1735316451172,2.7275,183.58,183.54,3.8]
[1735316451382,1.6949,183.63,183.54,3.8]
[1735316453472,4.09127349,183.67,183.55,12.83968526]
[1735316453679,10.87558592,183.68,183.55,17.62428526]
[1735316453875,10.87558592,183.68,183.56,2.7278]
[1735316453876,2.7271,183.61,183.56,2.7278]
[1735316454076,10.87558592,183.68,183.55,4.7846]
[1735316454576,3.3501,183.68,183.55,4.7846]
[1735316456177,7.4410723,183.68,183.55,4.7846]
[1735316456386,2.7274,183.6,183.55,7.5125]
[1735316456688,14.96655822,183.68,183.55,4.7846]
[1735316456882,2.7273,183.6,183.55,7.5125]
[1735316457279,10.87558592,183.68,183.56,3.8]
[1735316457478,2.7272,183.6,183.56,3.8]
[1735316457882,2.7274,183.59,183.56,3.8]
[1735316458187,12.83968526,183.66,183.56,3.8]
[1735316458487,2.7277,183.57,183.56,3.8]
[1735316459789,12.83968526,183.66,183.51,15.56808526]
[1735316459982,2.7279,183.56,183.52,3.8]
[1735316460179,16.93103318,183.66,183.52,3.8]
[1735316460491,2.7271,183.61,183.54,12.83968526]
[1735316460691,2.7271,183.61,183.55,3.1234]
[1735316461088,2.7273,183.6,183.56,2.7277]
[1735316461285,30.10194369,183.66,183.55,3.1234]
[1735316461486,3.3501,183.68,183.55,3.1234]
[1735316461785,3.3501,183.68,183.55,5.8512]
[1735316461982,12.83968526,183.66,183.55,4.775]
[1735316462786,2.7273,183.6,183.55,20.34258526]
[1735316462991,3.3501,183.68,183.55,17.61468526]
[1735316463191,3.3501,183.68,183.58,12.83968526]
[1735316463392,3.3501,183.68,183.59,3.8]
[1735316464594,2.7272,183.6,183.59,3.8]
[1735316465694,3.3501,183.68,183.59,3.8]
[1735316465896,33.45204369,183.68,183.59,3.8]
[1735316466090,30.10194369,183.68,183.61,12.83968526]
[1735316466396,2.7265,183.66,183.61,12.83968526]
[1735316466593,30.10194369,183.68,183.61,12.83968526]
[1735316466794,30.10194369,183.68,183.64,12.83968526]
[1735316467000,30.10194369,183.68,183.61,12.83968526]
[1735316467001,7.52548592,183.73,183.67,12.83968526]
[1735316467797,7.52548592,183.76,183.67,12.83968526]
[1735316468195,7.52548592,183.76,183.67,20.50199421]
[1735316468398,2.7253,183.73,183.67,23.22819421]
[1735316469105,7.52548592,183.76,183.67,20.50199421]
[1735316469305,4.7794,183.81,183.67,20.50199421]
[1735316469803,2.7257,183.71,183.67,20.50199421]
[1735316469995,20.50199421,183.8,183.65,3.8]
[1735316470199,4.7794,183.81,183.65,3.8]
[1735316471105,4.7794,183.81,183.67,20.50199421]
[1735316471306,2.7253,183.74,183.68,4.3619]
[1735316471501,4.7794,183.81,183.68,1.6359]
[1735316472306,20.50199421,183.8,183.68,1.6359]
[1735316474110,2.7248,183.77,183.68,1.6359]
[1735316474308,20.50199421,183.8,183.68,1.6359]
[1735316474710,2.7256,183.72,183.68,1.6359]
[1735316474908,60.20388739,183.9,183.72,2.7253]
[1735316475108,3.3379,183.88,183.73,24.30199421]
[1735316475413,3.3379,183.88,183.76,20.50199421]
[1735316475610,60.20388739,183.9,183.77,1.6889]
[1735316475804,60.20388739,183.9,183.77,3.3644]
[1735316476003,2.7234,183.86,183.79,20.50199421]
[1735316476204,1.6736,183.91,183.8,3.8]
[1735316476412,1.6217,183.92,183.8,3.8]
[1735316476611,2.7236,183.85,183.8,3.8]
[1735316476811,1.6217,183.92,183.82,20.50199421]
[1735316477012,1.6736,183.95,183.82,20.50199421]
[1735316477814,1.6736,183.95,183.8,3.8]
[1735316478001,20.50199421,183.94,183.8,3.8]
[1735316478401,1.6736,183.95,183.81,2.724]
[1735316478606,1.6736,183.95,183.8,3.8]
[1735316478812,2.7235,183.85,183.8,3.8]
[1735316479111,2.7235,183.85,183.81,3.8]
[1735316479502,20.50199421,183.94,183.82,3.8]
[1735316479900,1.6736,183.95,183.79,56.66]
[1735316480107,2.7242,183.8,183.79,56.66]
[1735316480407,2.7242,183.8,183.79,60.46]
[1735316481606,2.7242,183.8,183.79,3.8]
[1735316484013,20.50199421,183.85,183.69,20.50199421]
[1735316484216,2.7252,183.74,183.7,3.8]
[1735316484718,1.5712,183.79,183.7,3.8]
[1735316484719,2.7256,183.71,183.7,3.8]
[1735316485611,20.50199421,183.76,183.69,3.8]
[1735316486015,2.7257,183.7,183.61,4.7786]
[1735316486220,20.50199421,183.73,183.62,3.8]
[1735316486413,1.6929,183.72,183.62,3.8]
[1735316486814,2.7266,183.65,183.62,3.8]
[1735316487014,1.6929,183.72,183.62,3.8]
[1735316487519,2.7263,183.66,183.62,3.8]
[1735316487723,1.6929,183.72,183.62,3.8]
[1735316488016,2.7266,183.64,183.63,3.8]
[1735316488814,1.6929,183.72,183.63,3.8]
[1735316490017,2.7266,183.64,183.63,3.8]
[1735316490521,20.50199421,183.7,183.63,3.8]
[1735316490717,2.7266,183.64,183.63,3.8]
[1735316491323,3.3306,183.69,183.55,59.3478]
[1735316491621,2.727,183.62,183.56,3.8]
[1735316492218,3.3306,183.69,183.56,3.8]
[1735316492424,3.3306,183.69,183.57,3.8]
[1735316492818,2.7269,183.62,183.57,3.8]
[1735316493422,3.3306,183.69,183.57,3.8]
[1735316493623,2.7272,183.6,183.57,3.8]
[1735316493822,3.3306,183.69,183.55,56.62]
[1735316494120,3.3306,183.69,183.56,3.8]
[1735316495225,23.83259421,183.69,183.56,3.8]
[1735316495928,3.3306,183.69,183.56,3.8]
[1735316496522,3.3306,183.69,183.45,29.97573322]
[1735316496523,20.50199421,183.62,183.45,29.97573322]
[1735316496718,20.50199421,183.58,183.45,7.4939333]
[1735316496925,2.7293,183.47,183.45,7.4939333]
[1735316497119,2.7293,183.47,183.46,3.8]
[1735316497323,1.5828,183.57,183.46,3.8]
[1735316497520,2.729,183.48,183.46,3.8]
[1735316497725,2.729,183.48,183.47,3.8]
[1735316497929,20.50199421,183.55,183.45,7.4939333]
[1735316498235,20.50199421,183.55,183.46,3.8]
[1735316498440,20.50199421,183.55,183.47,3.8]
[1735316500636,2.7289,183.49,183.47,3.8]
[1735316500830,1.5828,183.57,183.47,3.8]
[1735316502538,2.7284,183.52,183.47,3.8]
[1735316503038,1.5828,183.57,183.47,3.8]
[1735316503233,2.7286,183.51,183.47,3.8]
[1735316503938,1.5828,183.57,183.47,3.8]
[1735316504135,1.5828,183.57,183.48,3.8]
[1735316504336,20.50199421,183.55,183.49,3.8]
[1735316504539,2.7295,183.45,183.4,1.6721]
[1735316504740,20.50199421,183.55,183.41,3.8]
[1735316505034,20.50199421,183.52,183.4,1.6721]
[1735316505333,20.50199421,183.49,183.41,3.8]
[1735316505540,1.6918,183.48,183.33,82.14136068]
[1735316505737,1.6918,183.48,183.33,1.6879]
[1735316505938,1.6918,183.48,183.34,3.8]
[1735316506234,1.6918,183.48,183.33,1.6879]
[1735316506235,2.7306,183.37,183.33,1.6879]
[1735316506441,20.50199421,183.46,183.34,3.8]
[1735316507742,20.50199421,183.43,183.35,3.8]
[1735316507943,1.6473,183.42,183.35,3.8]
[1735316508435,2.7308,183.36,183.35,3.8]
[1735316509040,2.7308,183.36,183.34,3.8]
[1735316509342,1.6908,183.41,183.34,3.8]
[1735316510150,1.6473,183.42,183.34,3.8]
[1735316510443,2.7302,183.41,183.34,6.531]
[1735316510637,3.1984,183.47,183.34,3.8]
[1735316510837,2.7304,183.39,183.34,3.8]
[1735316511037,3.1984,183.47,183.34,3.8]
[1735316511238,20.50199421,183.44,183.28,77.16199421]
[1735316511438,20.50199421,183.44,183.29,3.8]
[1735316512039,3.1984,183.47,183.34,20.50199421]
[1735316512244,3.1984,183.47,183.35,5.5056]
[1735316513039,2.73,183.41,183.36,2.7308]
[1735316513240,3.1984,183.47,183.35,5.5056]
[1735316513837,2.7302,183.41,183.35,5.5056]
[1735316514139,3.1984,183.47,183.35,5.5056]
[1735316515048,3.1984,183.47,183.36,2.7308]
[1735316515544,3.1984,183.47,183.35,5.5056]
[1735316517740,3.1984,183.47,183.35,3.8]
[1735316517936,3.1984,183.47,183.36,3.8]
[1735316519148,2.7305,183.38,183.36,3.8]
[1735316519643,2.7306,183.37,183.36,3.8]
[1735316519848,20.50199421,183.44,183.33,3.8]
[1735316520243,2.7315,183.32,183.29,1.6712]
[1735316520438,20.50199421,183.41,183.3,3.8]
[1735316520849,2.7305,183.38,183.3,3.8]
[1735316521049,20.50199421,183.41,183.3,3.8]
[1735316521444,2.7315,183.31,183.3,3.8]
[1735316522045,20.50199421,183.41,183.3,3.8]
[1735316522251,20.50199421,183.44,183.3,3.8]
[1735316522751,2.7302,183.4,183.3,3.8]
[1735316523049,20.50199421,183.44,183.3,3.8]
[1735316524153,2.7305,183.38,183.32,2.7313]
[1735316524354,20.50199421,183.44,183.32,2.7313]
[1735316524752,2.7301,183.41,183.32,2.7313]
[1735316525058,20.50199421,183.44,183.32,2.7313]
[1735316525447,2.7306,183.38,183.32,2.7313]
[1735316525653,2.7306,183.38,183.33,1.5517]
[1735316526046,2.7307,183.37,183.33,1.5517]
[1735316526445,2.7305,183.38,183.33,4.2829]
[1735316526645,23.70039421,183.47,183.33,1.5517]
[1735316527055,23.70039421,183.47,183.35,2.7308]
[1735316527257,23.70039421,183.47,183.36,3.8]
[1735316527451,3.1984,183.47,183.36,3.8]
[1735316527951,113.90491482,183.53,183.37,20.50199421]
[1735316528255,93.40292061,183.53,183.38,1.00309751]
[1735316528455,113.90491482,183.53,183.38,1.00309751]
[1735316528645,113.90491482,183.53,183.37,21.50518334]
[1735316528846,113.90491482,183.53,183.39,3.8]
[1735316531761,2.7293,183.46,183.41,2.7299]